bitfinex/quotes_BTCUSD_20251104
["timestamp","ask_amount","ask_price","bid_price","bid_amount"]
[1762252299439,0.04393512,103850.0,103830.0,0.07385147]
[1762252299666,0.04393512,103850.0,103820.0,0.20227265]
[1762252299870,0.04293512,103850.0,103820.0,0.20227265]
[1762252300072,0.08037512,103850.0,103810.0,0.34]
[1762252300448,0.15498512,103850.0,103810.0,0.34]
[1762252300859,0.1800583,103850.0,103810.0,0.34]
[1762252301044,0.1790583,103850.0,103800.0,0.3826]
[1762252301244,0.1800583,103850.0,103800.0,0.58491202]
[1762252301456,0.1810583,103850.0,103800.0,0.58491202]
[1762252301662,0.0240755,103840.0,103800.0,0.58390202]
[1762252302208,0.1800583,103850.0,103800.0,0.58390202]
[1762252302434,0.1044483,103850.0,103810.0,0.20229176]
[1762252302610,0.1134483,103850.0,103800.0,0.58490202]
[1762252302816,0.022,103840.0,103800.0,0.58690202]
[1762252303057,0.022,103840.0,103810.0,0.202292]
[1762252303211,0.022,103840.0,103800.0,0.58690202]
[1762252303417,0.022,103840.0,103810.0,0.20229221]
[1762252303620,0.022,103840.0,103800.0,0.6574049]
[1762252304020,0.031,103840.0,103800.0,0.6584049]
[1762252304224,0.009,103840.0,103800.0,0.6564049]
[1762252304557,0.17782886,103850.0,103800.0,0.6554049]
[1762252304762,0.17782886,103850.0,103810.0,0.19365873]
[1762252305083,0.10221886,103850.0,103810.0,0.20229171]
[1762252305237,0.009,103840.0,103810.0,0.20229171]
[1762252305440,0.022,103840.0,103810.0,0.20229171]
[1762252305683,0.23995398,103870.0,103820.0,0.31685667]
[1762252306032,0.40667086,103860.0,103850.0,0.04565]
[1762252306207,0.42182,103860.0,103850.0,0.04565]
[1762252306408,0.001,103850.0,103830.0,0.01926225]
[1762252306632,0.00212894,103850.0,103840.0,0.09532]
[1762252306775,0.00212894,103850.0,103840.0,0.14767]
[1762252307490,0.00212894,103850.0,103840.0,0.05235]
[1762252307698,0.00112894,103850.0,103840.0,0.05235]
[1762252308101,0.00212894,103850.0,103840.0,0.05235]
[1762252308460,0.04472894,103850.0,103840.0,0.05235]
[1762252309212,0.04472894,103850.0,103820.0,0.19008258]
[1762252309352,0.04472894,103850.0,103820.0,0.33748258]
[1762252309584,0.04472894,103850.0,103820.0,0.34966897]
[1762252310381,0.04372894,103850.0,103830.0,0.19262226]
[1762252310800,0.04472894,103850.0,103830.0,0.09630226]
[1762252311025,0.04472894,103850.0,103830.0,0.43630226]
[1762252311228,0.00212894,103850.0,103840.0,0.0242604]
[1762252311448,0.00112894,103850.0,103840.0,0.0242604]
[1762252311658,0.00112894,103850.0,103840.0,0.2118644]
[1762252311863,0.00212894,103850.0,103840.0,0.532604]
[1762252312153,0.00212894,103850.0,103840.0,0.34]
[1762252312323,0.00112894,103850.0,103830.0,0.005]
[1762252312529,0.00112894,103850.0,103830.0,0.19262191]
[1762252312728,0.00112894,103850.0,103840.0,0.01]
[1762252313137,0.00112894,103850.0,103840.0,0.0292604]
[1762252313648,0.00112894,103850.0,103840.0,0.2218644]
[1762252313853,0.00112894,103850.0,103820.0,0.20227219]
[1762252314268,0.00112894,103850.0,103840.0,0.002]
[1762252315064,0.01312894,103850.0,103830.0,0.34]
[1762252315268,0.02212894,103850.0,103820.0,0.20327111]
[1762252315617,0.00112894,103850.0,103820.0,0.20227111]
[1762252315817,0.00112894,103850.0,103840.0,0.012]
[1762252316648,0.00112894,103850.0,103810.0,0.39987436]
[1762252316854,0.00112894,103850.0,103820.0,0.2215365]
[1762252317042,0.00112894,103850.0,103820.0,0.01926411]
[1762252317241,0.00112894,103850.0,103820.0,0.21190503]
[1762252317435,0.02912894,103850.0,103820.0,0.03089616]
[1762252317905,0.02912894,103850.0,103820.0,0.002]
[1762252318233,0.02912894,103850.0,103810.0,0.39229252]
[1762252318446,0.02912894,103850.0,103810.0,0.58489252]
[1762252319741,0.02912894,103850.0,103810.0,0.48856252]
[1762252319958,0.02912894,103850.0,103820.0,0.34]
[1762252320171,0.00112894,103850.0,103820.0,0.34]
[1762252320381,0.07342212,103850.0,103820.0,0.34]
[1762252320585,0.06934894,103850.0,103820.0,0.34]
[1762252320789,0.06034894,103850.0,103820.0,0.34]
[1762252321029,0.05134894,103850.0,103820.0,0.341]
[1762252321234,0.07434894,103850.0,103820.0,0.343]
[1762252321443,0.06334894,103850.0,103820.0,0.002]
[1762252321677,0.08742212,103850.0,103820.0,0.002]
[1762252321888,0.1058955,103840.0,103810.0,0.34]
[1762252322097,0.1058955,103840.0,103800.0,0.07088951]
[1762252322540,0.1848555,103840.0,103790.0,0.09591138]
[1762252322741,0.1848555,103840.0,103790.0,0.10554621]
[1762252322940,0.1848555,103840.0,103790.0,0.29824062]
[1762252323136,0.1848555,103840.0,103790.0,0.24451062]
[1762252323372,0.1848555,103840.0,103790.0,0.3826]
[1762252323483,0.1968555,103840.0,103800.0,0.001]
[1762252323699,0.37746013,103840.0,103790.0,0.34]
[1762252323914,0.1848555,103840.0,103790.0,0.34]
[1762252324110,0.03922,103830.0,103790.0,0.41153424]
[1762252324313,0.03922,103830.0,103790.0,0.07153424]
[1762252324314,0.0426,103820.0,103790.0,0.07153424]
[1762252324525,0.10590013,103820.0,103790.0,0.07153424]
[1762252324734,0.18486013,103820.0,103800.0,0.001]
[1762252324979,0.18486013,103820.0,103790.0,0.07153424]
[1762252325179,0.18486013,103820.0,103790.0,0.07062802]
[1762252325391,0.18486013,103820.0,103760.0,0.43948738]
[1762252325597,0.18486013,103820.0,103760.0,0.43963356]
[1762252325803,0.18486013,103820.0,103770.0,0.34]
[1762252326006,0.18486013,103820.0,103770.0,0.61507061]
[1762252326435,0.18486013,103820.0,103790.0,0.002]
[1762252326641,0.18486013,103820.0,103790.0,0.001]
[1762252326851,0.18486013,103820.0,103780.0,0.0152469]
[1762252327054,0.19686013,103820.0,103770.0,0.27607164]
[1762252327264,0.20886013,103820.0,103780.0,0.34]
[1762252327670,0.18486013,103820.0,103780.0,0.34]
[1762252327874,0.18486013,103820.0,103780.0,0.54235044]
[1762252328094,0.18586013,103820.0,103780.0,0.54235044]
[1762252328323,0.19586013,103820.0,103780.0,0.54235044]
[1762252328765,0.19586013,103820.0,103780.0,0.34963576]
[1762252328969,0.19586013,103820.0,103780.0,0.34]
[1762252329171,0.19586013,103820.0,103780.0,0.35560518]
[1762252329377,0.18586013,103820.0,103780.0,0.35560518]
[1762252329590,0.18586013,103820.0,103780.0,0.35760518]
[1762252330018,0.07896,103810.0,103780.0,0.342]
[1762252330228,0.04264,103800.0,103780.0,0.342]
[1762252330438,0.06672477,103800.0,103780.0,0.002]
[1762252330639,0.14568477,103800.0,103780.0,0.002]
[1762252330848,0.18490477,103800.0,103790.0,0.00048308]
[1762252331093,0.10594477,103800.0,103750.0,0.24500122]
[1762252331320,0.10694477,103800.0,103780.0,0.006]
[1762252331528,0.18590477,103800.0,103780.0,0.006]
[1762252331730,0.14326477,103800.0,103780.0,0.006]
[1762252331910,0.04264,103790.0,103780.0,0.006]
[1762252332533,0.04264,103790.0,103780.0,0.00024158]
[1762252332982,0.14326477,103800.0,103790.0,0.008]
[1762252333203,0.18490477,103800.0,103790.0,0.003]
[1762252333439,0.23666477,103800.0,103780.0,0.00024158]
[1762252333656,0.001,103790.0,103780.0,0.01224158]
[1762252333889,0.02408709,103790.0,103780.0,0.00624158]
[1762252334114,0.10694477,103800.0,103790.0,0.005]
[1762252334566,0.15770477,103800.0,103780.0,0.00024158]
[1762252335679,0.15770477,103800.0,103780.0,0.00524158]
[1762252335680,0.15870477,103800.0,103780.0,0.00524158]
[1762252335913,0.15870477,103800.0,103790.0,0.003]
[1762252336575,0.15870477,103800.0,103780.0,0.00524158]
[1762252336781,0.15870477,103800.0,103780.0,0.00824158]
[1762252336966,0.15770477,103800.0,103780.0,0.00324158]
[1762252337204,0.15770477,103800.0,103780.0,0.00024158]
[1762252337408,0.15870477,103800.0,103790.0,0.005]
[1762252337608,0.15770477,103800.0,103790.0,0.003]
[1762252337944,0.04264,103800.0,103790.0,0.02565]
[1762252338145,0.04264,103800.0,103790.0,0.07095]
[1762252338552,0.08935588,103810.0,103790.0,0.11625]
[1762252338757,0.00112928,103820.0,103800.0,0.0906]
[1762252338966,0.00112928,103820.0,103810.0,0.02265]
[1762252338967,0.03880527,103820.0,103810.0,0.02265]
[1762252339168,0.001,103800.0,103790.0,0.06795]
[1762252339372,0.04364,103800.0,103790.0,0.06795]
[1762252339628,0.04364,103800.0,103790.0,0.11325]
[1762252339759,0.04264,103800.0,103790.0,0.06795]
[1762252339969,0.04264,103800.0,103790.0,0.07095]
[1762252340175,0.08017,103800.0,103790.0,0.003]
[1762252340580,0.08017,103800.0,103790.0,0.008]
[1762252340581,0.13194,103800.0,103790.0,0.008]
[1762252340777,0.13294,103800.0,103790.0,0.008]
[1762252341594,0.13294,103800.0,103770.0,0.36265]
[1762252341807,0.13294,103800.0,103770.0,0.43587202]
[1762252342403,0.08017,103800.0,103770.0,0.43587202]
[1762252342814,0.10717,103800.0,103770.0,0.29060507]
[1762252343026,0.06964,103800.0,103770.0,0.20387176]
[1762252343431,0.06964,103800.0,103770.0,0.21793324]
[1762252344280,0.06964,103800.0,103770.0,0.0155635]
[1762252344546,0.10717,103800.0,103770.0,0.0155635]
[1762252345398,0.06964,103800.0,103770.0,0.21793309]
[1762252345777,0.027,103800.0,103790.0,0.34]
[1762252346135,0.06964,103800.0,103790.0,0.34]
[1762252346337,0.027,103800.0,103790.0,0.34]
[1762252346565,0.04264,103800.0,103790.0,0.54233162]
[1762252346767,0.04264,103810.0,103790.0,0.342]
[1762252347009,0.001,103800.0,103790.0,0.344]
[1762252347565,0.001,103800.0,103790.0,0.342]
[1762252347919,0.001,103800.0,103790.0,0.002]
[1762252348544,0.15471,103810.0,103770.0,0.08722585]
[1762252348766,0.15471,103810.0,103790.0,0.001]
[1762252348970,0.15471,103810.0,103760.0,0.34978821]
[1762252349166,0.15471,103810.0,103770.0,0.2166076]
[1762252349397,0.001,103800.0,103790.0,0.002]
[1762252349606,0.08017,103810.0,103770.0,0.20237009]
[1762252349806,0.16147,103810.0,103770.0,0.10600009]
[1762252350012,0.16147,103810.0,103790.0,0.001]
[1762252350305,0.16147,103810.0,103770.0,0.11563678]
[1762252350502,0.08017,103810.0,103790.0,0.002]
[1762252350916,0.08017,103810.0,103770.0,0.54282786]
[1762252351089,0.08017,103810.0,103770.0,0.43682777]
[1762252351407,0.08017,103810.0,103770.0,0.62956117]
[1762252351619,0.001,103800.0,103790.0,0.002]
[1762252351842,0.04264,103800.0,103770.0,0.62956117]
[1762252352050,0.04264,103800.0,103770.0,0.42719108]
[1762252352249,0.04264,103800.0,103770.0,0.42819108]
[1762252352451,0.03753,103810.0,103770.0,0.42719108]
[1762252352635,0.04264,103800.0,103770.0,0.62956041]
[1762252352838,0.04364,103800.0,103790.0,0.002]
[1762252353253,0.04264,103800.0,103770.0,0.34245777]
[1762252353461,0.04264,103800.0,103770.0,0.34345777]
[1762252353462,0.05364,103800.0,103770.0,0.34345777]
[1762252353668,0.05364,103800.0,103770.0,0.33182108]
[1762252353839,0.07364,103800.0,103770.0,0.33282108]
[1762252354049,0.07364,103800.0,103770.0,0.53518442]
[1762252354297,0.07364,103800.0,103780.0,0.11135049]
[1762252354495,0.07364,103800.0,103780.0,0.01500562]
[1762252354767,0.06264,103800.0,103770.0,0.33182108]
[1762252354967,0.06264,103800.0,103770.0,0.40328681]
[1762252355238,0.1846,103800.0,103790.0,0.002]
[1762252355443,0.21753,103800.0,103750.0,0.36892959]
[1762252355636,0.12096,103790.0,103740.0,0.34982299]
[1762252355789,0.04264,103780.0,103740.0,0.28239746]
[1762252355986,0.04264,103780.0,103740.0,0.22172221]
[1762252356355,0.08371,103780.0,103770.0,0.00024162]
[1762252357017,0.04264,103780.0,103770.0,0.00024162]
[1762252357233,0.06107,103790.0,103770.0,0.00024162]
[1762252357443,0.04264,103780.0,103770.0,0.00024162]
[1762252357686,0.04207,103800.0,103770.0,0.19297553]
[1762252357937,0.0783817,103810.0,103770.0,0.53273355]
[1762252358157,0.012,103780.0,103770.0,0.54237024]
[1762252358372,0.04219942,103810.0,103780.0,0.20234517]
[1762252358586,0.00112942,103810.0,103800.0,0.34]
[1762252359040,0.00112942,103810.0,103800.0,0.53267822]
[1762252359245,0.00112942,103810.0,103800.0,0.43630822]
[1762252359674,0.00312942,103810.0,103800.0,0.24363]
[1762252359884,0.00512942,103810.0,103800.0,0.45530822]
[1762252360755,0.00512942,103810.0,103800.0,0.26263]
[1762252360966,0.00512942,103810.0,103800.0,0.45530822]
[1762252361181,0.00312942,103810.0,103800.0,0.45530822]
[1762252361615,0.00412942,103810.0,103800.0,0.45830822]
[1762252361849,0.00412942,103810.0,103800.0,0.33841178]
[1762252362055,0.00412942,103810.0,103800.0,0.53109]
[1762252362687,0.00412942,103810.0,103800.0,0.33841178]
[1762252362935,0.00412942,103810.0,103800.0,0.53109]
[1762252363144,0.00412942,103810.0,103800.0,0.33841178]
[1762252366010,0.31282466,103850.0,103800.0,0.33841178]
[1762252366224,0.11856228,103840.0,103800.0,0.022]
[1762252366441,0.31116953,103840.0,103800.0,0.022]
[1762252366617,0.12141,103830.0,103800.0,0.022]
[1762252367696,0.12141,103830.0,103780.0,0.3647736]
[1762252367944,0.12141,103830.0,103800.0,0.001]
[1762252368372,0.03903,103830.0,103800.0,0.003]
[1762252368587,0.12141,103830.0,103800.0,0.004]
[1762252368802,0.12141,103830.0,103800.0,0.001]
[1762252369201,0.12241,103830.0,103800.0,0.008]
[1762252369451,0.12241,103830.0,103800.0,0.007]
[1762252369663,0.12141,103830.0,103790.0,0.34]
[1762252370251,0.12241,103830.0,103800.0,0.005]
[1762252370457,0.001,103830.0,103800.0,0.02426782]
[1762252370658,0.04003,103830.0,103800.0,0.02426782]
[1762252370825,0.04003,103830.0,103790.0,0.54233074]
[1762252370826,0.04103,103830.0,103790.0,0.26790782]
[1762252371031,0.14268579,103830.0,103780.0,0.07152388]
[1762252371231,0.14268579,103830.0,103780.0,0.01927153]
[1762252371839,0.47171579,103830.0,103780.0,0.22162182]
[1762252372274,0.47371579,103830.0,103790.0,0.001]
[1762252372424,0.48671579,103830.0,103780.0,0.20335064]
[1762252372621,0.48471579,103830.0,103780.0,0.20335064]
[1762252372827,0.48471579,103830.0,103780.0,0.54335064]
[1762252373280,0.51071579,103830.0,103780.0,0.54535064]
[1762252373481,0.51071579,103830.0,103780.0,0.343]
[1762252373689,0.70334112,103830.0,103780.0,0.343]
[1762252374066,0.51891776,103830.0,103780.0,0.343]
[1762252374273,0.01351949,103820.0,103790.0,0.4473]
[1762252374688,0.01351949,103820.0,103810.0,0.08087]
[1762252375603,0.10744949,103820.0,103810.0,0.08087]
[1762252376077,0.10444949,103820.0,103810.0,0.08087]
[1762252376321,0.03903,103810.0,103790.0,0.001]
[1762252376528,0.0181372,103800.0,103790.0,0.001]
[1762252376726,0.0181372,103800.0,103780.0,0.05509]
[1762252376932,0.0181372,103800.0,103790.0,0.02755]
[1762252377732,0.0181372,103800.0,103790.0,0.02855]
[1762252377992,0.0720372,103800.0,103790.0,0.002]
[1762252380102,0.002,103800.0,103760.0,0.59516317]
[1762252380310,0.002,103800.0,103760.0,0.59530951]
[1762252380856,0.002,103800.0,103770.0,0.21313746]
[1762252381096,0.03903,103810.0,103770.0,0.21313746]
[1762252381325,0.03903,103810.0,103770.0,0.01076742]
[1762252381532,0.025,103800.0,103770.0,0.02040411]
[1762252381741,0.025,103800.0,103770.0,0.20237004]
[1762252381921,0.03903,103810.0,103770.0,0.21313549]
[1762252382166,0.011,103800.0,103770.0,0.21413549]
[1762252382352,0.011,103800.0,103790.0,0.00024155]
[1762252382910,0.011,103800.0,103790.0,0.19293834]
[1762252383111,0.004,103810.0,103790.0,0.19293834]
[1762252383515,0.20115311,103830.0,103790.0,0.20257317]
[1762252383700,0.28353311,103830.0,103790.0,0.20257317]
[1762252383901,0.002,103800.0,103790.0,0.20257317]
[1762252384104,0.003,103800.0,103790.0,0.54457317]
[1762252384313,0.002,103800.0,103790.0,0.34024155]
[1762252384543,0.28353311,103830.0,103790.0,0.34024155]
[1762252384746,0.29253311,103830.0,103790.0,0.34124155]
[1762252384916,0.29053311,103830.0,103790.0,0.34124155]
[1762252385122,0.28353311,103830.0,103790.0,0.34024155]
[1762252385539,0.001,103800.0,103790.0,0.34224155]
[1762252386144,0.00014832,103800.0,103790.0,0.35186325]
[1762252386363,0.00014832,103800.0,103790.0,0.35386325]
[1762252386720,0.28353311,103830.0,103790.0,0.35186325]
[1762252386925,0.28353311,103830.0,103790.0,0.36149808]
[1762252387167,0.29053311,103830.0,103790.0,0.36249808]
[1762252387371,0.29053311,103830.0,103790.0,0.35286325]
[1762252387767,0.29053311,103830.0,103790.0,0.35086325]
[1762252388149,0.25150311,103830.0,103790.0,0.35086325]
[1762252388351,0.12416453,103830.0,103820.0,0.01149]
[1762252388502,0.13785755,103830.0,103820.0,0.0211117]
[1762252388705,0.009,103830.0,103820.0,0.0388517]
[1762252388898,0.009,103830.0,103820.0,0.0565917]
[1762252389555,0.00914599,103830.0,103820.0,0.0388517]
[1762252389972,0.00714599,103830.0,103820.0,0.0565917]
[1762252390177,0.00014599,103830.0,103820.0,0.3965917]
[1762252390318,0.00014599,103830.0,103820.0,0.3002117]
[1762252390526,0.00214599,103830.0,103820.0,0.3002117]
[1762252390946,0.00814599,103830.0,103820.0,0.3012117]
[1762252391144,0.00614599,103830.0,103820.0,0.3012117]
[1762252391350,0.00614599,103830.0,103820.0,0.001]
[1762252391554,0.00014599,103830.0,103820.0,0.001]
[1762252391754,0.00214599,103830.0,103820.0,0.002]
[1762252392992,0.00214599,103830.0,103790.0,0.39251638]
[1762252393196,0.00214599,103830.0,103790.0,0.65635949]
[1762252393632,0.00214599,103830.0,103800.0,0.00963391]
[1762252393841,0.00014599,103830.0,103800.0,0.00963391]
[1762252394037,0.00014599,103830.0,103800.0,0.21181309]
[1762252394215,0.03814599,103830.0,103800.0,0.21181178]
[1762252394433,0.02614599,103830.0,103800.0,0.21181178]
[1762252394634,0.00014599,103830.0,103810.0,0.19265845]
[1762252395016,0.00214599,103830.0,103820.0,0.20338892]
[1762252395202,0.00214599,103830.0,103820.0,0.5326411]
[1762252396020,0.00214599,103830.0,103820.0,0.34]
[1762252396421,0.00014599,103830.0,103820.0,0.34]
[1762252396622,0.00314599,103830.0,103820.0,0.34]
[1762252396816,0.00314599,103830.0,103820.0,0.33166]
[1762252397065,0.00050986,103830.0,103820.0,0.31914]
[1762252397264,0.02053042,103860.0,103820.0,0.31914]
[1762252397462,0.02053042,103860.0,103820.0,0.32114]
[1762252397676,0.003,103830.0,103820.0,0.32114]
[1762252398086,0.02053042,103860.0,103820.0,0.32014]
[1762252398283,0.02053042,103860.0,103820.0,0.31914]
[1762252398507,0.03053042,103860.0,103820.0,0.32114]
[1762252398709,0.10982042,103860.0,103820.0,0.32114]
[1762252398907,0.02407318,103850.0,103820.0,0.32114]
[1762252399201,0.06551318,103850.0,103820.0,0.32114]
[1762252399746,0.06551318,103850.0,103820.0,0.31914]
[1762252399975,0.07251318,103850.0,103820.0,0.39331953]
[1762252400179,0.17347192,103860.0,103820.0,0.39431953]
[1762252400375,0.04144,103850.0,103830.0,0.33801]
[1762252400632,0.01333927,103850.0,103830.0,0.40017]
[1762252400873,0.05477927,103850.0,103830.0,0.40017]
[1762252401077,0.05477927,103850.0,103840.0,0.0503]
[1762252401284,0.01333927,103850.0,103840.0,0.0503]
[1762252401502,0.01333927,103850.0,103840.0,0.11246]
[1762252401709,0.21490652,103860.0,103840.0,0.11246]
[1762252401923,0.05477927,103850.0,103840.0,0.0503]
[1762252402130,0.10894927,103850.0,103830.0,0.01974]
[1762252402372,0.37711585,103850.0,103820.0,0.002]
[1762252402581,0.04144,103830.0,103820.0,0.002]
[1762252402767,0.10894927,103830.0,103810.0,0.03108]
[1762252403005,0.01333927,103830.0,103820.0,0.01974]
[1762252403699,0.04952155,103840.0,103820.0,0.01974]
[1762252403905,0.12073,103850.0,103830.0,0.01974]
[1762252404118,0.14381213,103850.0,103800.0,0.51921279]
[1762252404321,0.0240755,103840.0,103810.0,0.01555497]
[1762252404536,0.14494928,103850.0,103810.0,0.01555497]
[1762252404786,0.001,103830.0,103810.0,0.01555497]
[1762252404994,0.14494928,103850.0,103810.0,0.01555497]
[1762252405409,0.14794928,103850.0,103800.0,0.44596957]
[1762252405827,0.14794928,103850.0,103800.0,0.24366]
[1762252406033,0.00224138,103840.0,103820.0,0.001]
[1762252406450,0.02431688,103840.0,103800.0,0.2447893]
[1762252406658,0.02431688,103840.0,103800.0,0.2457893]
[1762252406865,0.02431688,103840.0,103800.0,0.0021293]
[1762252407110,0.001,103830.0,103800.0,0.01768734]
[1762252407315,0.00024138,103840.0,103800.0,0.01668734]
[1762252407526,0.00224138,103840.0,103820.0,0.001]
[1762252407734,0.02831688,103840.0,103820.0,0.001]
[1762252407950,0.02631688,103840.0,103820.0,0.001]
[1762252408381,0.001,103830.0,103820.0,0.001]
[1762252408815,0.19484566,103840.0,103820.0,0.001]
[1762252409025,0.00024138,103840.0,103800.0,0.3411293]
[1762252409248,0.004,103830.0,103800.0,0.54444053]
[1762252409686,0.02431688,103840.0,103820.0,0.34]
[1762252409687,0.00024138,103840.0,103820.0,0.34]
[1762252409910,0.00024138,103840.0,103830.0,0.0155504]
[1762252410126,0.00824138,103840.0,103830.0,0.0155504]
[1762252410554,0.00624138,103840.0,103830.0,0.0155504]
[1762252410765,0.00024138,103840.0,103830.0,0.0155504]
[1762252411736,0.00124138,103840.0,103830.0,0.0155504]
[1762252412161,0.00124138,103840.0,103830.0,0.0088304]
[1762252412376,0.00124138,103840.0,103820.0,0.45184143]
[1762252412839,0.00424138,103840.0,103820.0,0.45284143]
[1762252413642,0.00324138,103840.0,103820.0,0.45284143]
[1762252413991,0.00424138,103840.0,103820.0,0.45284143]
[1762252414379,0.00424138,103840.0,103820.0,0.001]
[1762252415237,0.00424138,103840.0,103820.0,0.1936399]
[1762252415446,0.00424138,103840.0,103820.0,0.001]
[1762252415839,0.00424138,103840.0,103820.0,0.19364096]
[1762252415994,0.00424138,103840.0,103820.0,0.07171613]
[1762252416240,0.00424138,103840.0,103820.0,0.001]
[1762252421772,0.00424138,103840.0,103810.0,0.51952231]
[1762252422533,0.00124138,103840.0,103810.0,0.51952231]
[1762252422942,0.00424138,103840.0,103810.0,0.52052231]
[1762252423083,0.00324138,103840.0,103810.0,0.52052231]
[1762252423477,0.00424138,103840.0,103810.0,0.51242231]
[1762252424111,0.00424138,103840.0,103810.0,0.50242231]
[1762252425674,0.00424138,103840.0,103810.0,0.47449231]
[1762252426319,0.00424138,103840.0,103810.0,0.44796231]
[1762252426517,0.00424138,103840.0,103810.0,0.001]
[1762252426695,0.02831688,103840.0,103810.0,0.001]
[1762252429284,0.06984688,103840.0,103810.0,0.001]
[1762252429902,0.14600688,103840.0,103810.0,0.001]
[1762252430108,0.06984688,103840.0,103810.0,0.001]
[1762252430331,0.14600688,103840.0,103810.0,0.001]
[1762252430536,0.06984688,103840.0,103810.0,0.001]
[1762252430746,0.34824537,103840.0,103810.0,0.001]
[1762252430949,0.33861517,103840.0,103810.0,0.001]
[1762252431185,0.34824537,103840.0,103810.0,0.001]
[1762252431597,0.33861517,103840.0,103810.0,0.001]
[1762252431799,0.33861517,103840.0,103790.0,0.26385156]
[1762252431800,0.34824537,103840.0,103790.0,0.08079052]
[1762252432089,0.34824537,103840.0,103790.0,0.07115569]
[1762252432090,0.34,103830.0,103790.0,0.07115569]
[1762252432538,0.34,103830.0,103790.0,0.07133634]
[1762252432735,0.34,103830.0,103790.0,0.27366467]
[1762252432951,0.34,103830.0,103790.0,0.20232833]
[1762252433166,0.34,103830.0,103790.0,0.20332833]
[1762252433374,0.04177138,103840.0,103800.0,0.19267809]
[1762252433598,0.04177138,103840.0,103800.0,0.202312]
[1762252433829,0.011,103830.0,103800.0,0.202312]
[1762252434043,0.011,103830.0,103790.0,0.20332833]
[1762252434480,0.011,103830.0,103810.0,0.1926585]
[1762252434692,0.00024138,103840.0,103810.0,0.20229233]
[1762252434900,0.02724138,103840.0,103810.0,0.20229098]
[1762252435314,0.02724138,103840.0,103820.0,0.19263723]
[1762252435517,0.00024138,103840.0,103810.0,0.24493098]
[1762252435702,0.002,103830.0,103820.0,0.07338903]
[1762252435937,0.00043244,103830.0,103820.0,0.1926411]
[1762252436323,0.00024138,103840.0,103820.0,0.1926411]
[1762252436479,0.00424138,103840.0,103820.0,0.19363837]
[1762252436688,0.00524138,103840.0,103820.0,0.001]
[1762252437284,0.00524138,103840.0,103810.0,0.43932098]
[1762252437487,0.00524138,103840.0,103810.0,0.34961098]
[1762252437701,0.00024138,103840.0,103810.0,0.34961098]
[1762252437901,0.001,103830.0,103820.0,0.001]
[1762252438304,0.001,103830.0,103820.0,0.002]
[1762252438507,0.00024138,103840.0,103820.0,0.001]
[1762252438733,0.00324138,103840.0,103820.0,0.001]
[1762252439108,0.00324138,103840.0,103820.0,0.341]
[1762252439355,0.00324138,103840.0,103820.0,0.53364091]
[1762252439601,0.00024138,103840.0,103820.0,0.46519195]
[1762252439946,0.00124138,103840.0,103820.0,0.46519195]
[1762252440151,0.00124138,103840.0,103830.0,0.19262255]
[1762252440532,0.00124138,103840.0,103820.0,0.46519195]
[1762252440733,0.00024138,103840.0,103820.0,0.46619195]
[1762252440949,0.00424138,103840.0,103830.0,0.19262255]
[1762252441189,0.00424138,103840.0,103820.0,0.46819195]
[1762252441480,0.00024138,103840.0,103820.0,0.46719195]
[1762252441654,0.00024138,103840.0,103820.0,0.3860196]
[1762252441826,0.00124138,103840.0,103830.0,0.19262255]
[1762252442755,0.00024138,103840.0,103830.0,0.19262255]
[1762252442956,0.00024138,103840.0,103830.0,0.23526255]
[1762252443180,0.00024138,103840.0,103830.0,0.22527255]
[1762252443337,5.252e-05,103840.0,103830.0,0.03586]
[1762252443540,5.252e-05,103840.0,103830.0,0.03582]
[1762252443745,5.252e-05,103840.0,103830.0,0.22844255]
[1762252444143,0.00105252,103840.0,103830.0,0.23044255]
[1762252445431,5.252e-05,103840.0,103830.0,0.04264]
[1762252445632,5.252e-05,103840.0,103830.0,0.23526255]
[1762252445767,0.00089781,103840.0,103830.0,0.23926255]
[1762252446192,0.00089781,103840.0,103830.0,0.24226255]
[1762252447205,0.00089781,103840.0,103830.0,0.38966255]
[1762252448291,0.00089781,103840.0,103830.0,0.19704]
[1762252451010,0.00089781,103840.0,103830.0,0.38966255]
[1762252451877,0.01183612,103870.0,103830.0,0.39929367]
[1762252452083,0.01232311,103870.0,103830.0,0.39929367]
[1762252452703,0.00048699,103870.0,103840.0,0.19781975]
[1762252452923,0.00048699,103870.0,103840.0,0.39781975]
[1762252453144,0.00137037,103850.0,103840.0,0.39781975]
[1762252453347,0.00137037,103850.0,103840.0,0.39260022]
[1762252453549,0.00137037,103850.0,103840.0,0.392604]
[1762252453987,0.00137037,103850.0,103840.0,0.2]
[1762252454850,0.00237037,103850.0,103840.0,0.193494]
[1762252455059,0.00237037,103850.0,103840.0,0.129754]
[1762252455306,0.00137037,103850.0,103840.0,0.1339756]
[1762252455710,0.00237037,103850.0,103840.0,0.1369756]
[1762252455924,0.00052425,103850.0,103840.0,0.2843756]
[1762252456154,0.00052425,103850.0,103840.0,0.281154]
[1762252456895,0.00052425,103850.0,103840.0,0.133754]
[1762252457112,0.00052425,103850.0,103840.0,0.4789756]
[1762252457327,0.00052425,103850.0,103840.0,0.473754]
[1762252458229,0.00011676,103850.0,103840.0,0.473754]
[1762252458670,0.00011676,103850.0,103840.0,0.49537616]
[1762252458885,0.00011676,103850.0,103840.0,0.53155844]
[1762252459525,0.34,103900.0,103840.0,0.53155844]
[1762252459753,0.0004,103920.0,103880.0,0.43618228]
[1762252459978,0.0004,103920.0,103890.0,0.38787635]
[1762252460222,0.0004,103920.0,103900.0,0.4]
[1762252460464,0.0004,103920.0,103910.0,0.04795123]
[1762252461202,0.0004,103920.0,103910.0,0.04276]
[1762252461646,0.0014,103920.0,103910.0,0.04376]
[1762252461859,0.0014,103920.0,103910.0,0.06369972]
[1762252462290,0.0014,103920.0,103910.0,0.25617397]
[1762252462519,0.0014,103920.0,103910.0,0.25098481]
[1762252462955,0.0024,103920.0,103910.0,0.25098481]
[1762252463582,0.0024,103920.0,103910.0,0.32384112]
[1762252464289,0.0024,103920.0,103910.0,0.13136687]
[1762252464492,0.0024,103920.0,103910.0,0.13655603]
[1762252464696,0.0024,103920.0,103910.0,0.10693603]
[1762252465108,0.0024,103920.0,103910.0,0.29941028]
[1762252465319,0.0024,103920.0,103910.0,0.32476948]
[1762252465744,0.0040882,103920.0,103910.0,0.13229523]